Workbook

Sheet 1 fascia con attrezzi
A1: Comitato Regionale Lombardo - Via Ovada, 40 20142 MILANO
B2: Organizzata da: | C2: Ginnika 2001 – Pero
B3: Impianto e Indirizzo: | C3: Palestra Dante Alighieri – Via Giovanni XXIII - Pero - MI
B4: Svoltasi in data: | C4: Domenica 13 Marzo 2016
B5: Disciplina: | C5: Ginnastica per Tutti
A6: Prova di qualificazione Regionale Trofeo Sincrogym - Zona 3
A7: 1° Fascia categoria SILVER - con attrezzi
A9: CL | B9: SOCIETA' | C9: Prov. | D9: TOTALE CON ATTR. | E9: PN | F9: COLLETTIVO CON ATTREZZI | J9: COPPIE CON ATTREZZI
F10: D | G10: E | H10: PN | I10: TOTALE | J10: ESERCIZIO 1^ COPPIA | K10: ESERCIZIO 2^ COPPIA | L10: PN | M10: TOTALE
A12: 1 | B12: A.S.D. GYMNASIUM 97 | C12: MI | D12: =I12+M12-E12 -> 73 | E12: 0 | F12: 19 | G12: 17.7 | I12: =SUM(F12:G12)-H12 -> 36.7 | J12: 18.2 | K12: 18.1 | M12: =J12+K12 -> 36.3
A13: =A12+1 -> 2 | B13: GINNASTICA RITMICA NERVIANESE A.S.D. | C13: MI | D13: 72.6 | E13: 0 | F13: 19 | G13: 17.5 | I13: 36.5 | J13: 18.4 | K13: 17.7 | M13: =J13+K13-L13 -> 36.1
A14: =A13+1 -> 3 | B14: A.S.D. SOC GINNASTICA SKILL | C14: MI | D14: 72.3 | E14: 0 | F14: 19 | G14: 17.4 | I14: 36.4 | J14: 17.9 | K14: 18 | M14: =J14+K14 -> 35.9
A15: =A14+1 -> 4 | B15: A.S.D.GINNASTICA MODERNA LEGNANO | C15: MI | D15: 72.1 | E15: 0 | F15: 19 | G15: 17.6 | I15: 36.6 | J15: 17.6 | K15: 17.9 | M15: =J15+K15-L15 -> 35.5
A16: =A15+1 -> 5 | B16: A.S.D. ARTERITMICA PARABIAGO | C16: MI | D16: 72 | E16: 0 | F16: 19 | G16: 18 | I16: 37 | J16: 17.2 | K16: 17.8 | M16: =J16+K16-L16 -> 35
A17: =A16+1 -> 6 | B17: SOC. GINNASTICA PAVESE A.S.D. | C17: PV | D17: 71.3 | E17: 0 | F17: 19 | G17: 17.9 | I17: 36.9 | J17: 17.1 | K17: 17.3 | M17: =J17+K17-L17 -> 34.4
A18: 7 | B18: A.S.D. RITMICA MELZO | C18: MI | D18: 71.1 | E18: 0 | F18: 19 | G18: 17.9 | I18: 36.9 | J18: 17.5 | K18: 16.7 | M18: =J18+K18 -> 34.2
A19: 8 | B19: A.S.D. GINNIKA 2001 | C19: MI | D19: 68.8 | E19: 0 | F19: 19 | G19: 16.7 | I19: 35.7 | J19: 16.8 | K19: 16.3 | M19: =J19+K19 -> 33.1
A21: CL | B21: SOCIETA' | C21: Prov. | D21: COLLETTIVO CON ATTREZZI
D22: D | E22: E | F22: PN | G22: TOTALE
A24: =A23+1 -> 1 | B24: A.S.D. ARTERITMICA PARABIAGO | C24: MI | D24: 19 | E24: 18 | F24: 0 | G24: 37
A25: =A24+1 -> 2 | B25: SOC. GINNASTICA PAVESE A.S.D. | C25: PV | D25: 19 | E25: 17.9 | F25: 0 | G25: 36.9
A26: 2 | B26: A.S.D. RITMICA MELZO | C26: MI | D26: 19 | E26: 17.9 | F26: 0 | G26: 36.9
A27: 4 | B27: A.S.D. GYMNASIUM 97 | C27: MI | D27: 19 | E27: 17.7 | F27: 0 | G27: 36.7
A28: =A27+1 -> 5 | B28: A.S.D.GINNASTICA MODERNA LEGNANO | C28: MI | D28: 19 | E28: 17.6 | F28: 0 | G28: 36.6
A29: 6 | B29: GINNASTICA RITMICA NERVIANESE A.S.D. | C29: MI | D29: 19 | E29: 17.5 | F29: 0 | G29: 36.5
A30: 7 | B30: A.S.D. SOC GINNASTICA SKILL | C30: MI | D30: 19 | E30: 17.4 | F30: 0 | G30: 36.4
A31: 8 | B31: A.S.D. GINNIKA 2001 | C31: MI | D31: 19 | E31: 16.7 | F31: 0 | G31: 35.7
A34: CL | B34: SOCIETA' | C34: Prov. | D34: COPPIE CON ATTREZZI
D35: ESERCIZIO 1^COPPIA | E35: ESERCIZIO 2^ COPPIA | F35: PN | G35: TOTALE
A37: 1 | B37: A.S.D. GYMNASIUM 97 | C37: MI | D37: 18.2 | E37: 18.1 | F37: 0 | G37: 36.3
A38: =A37+1 -> 2 | B38: GINNASTICA RITMICA NERVIANESE A.S.D. | C38: MI | D38: 18.4 | E38: 17.7 | F38: 0 | G38: 36.1
A39: 3 | B39: A.S.D. SOC GINNASTICA SKILL | C39: MI | D39: 17.9 | E39: 18 | F39: 0 | G39: 35.9
A40: 4 | B40: A.S.D.GINNASTICA MODERNA LEGNANO | C40: MI | D40: 17.6 | E40: 17.9 | F40: 0 | G40: 35.5
A41: 5 | B41: A.S.D. ARTERITMICA PARABIAGO | C41: MI | D41: 17.2 | E41: 17.8 | F41: 0 | G41: 35
A42: 6 | B42: SOC. GINNASTICA PAVESE A.S.D. | C42: MI | D42: 17.1 | E42: 17.3 | F42: 0 | G42: 34.4
A43: 7 | B43: A.S.D. RITMICA MELZO | C43: PV | D43: 17.5 | E43: 16.7 | F43: 0 | G43: 34.2
A44: 8 | B44: A.S.D. GINNIKA 2001 | C44: MI | D44: 16.8 | E44: 16.3 | F44: 0 | G44: 33.1

Sheet 1 fascia senza attrezzi
A1: Comitato Regionale Lombardo - Via Ovada, 40 20142 MILANO
B2: Organizzata da: | C2: Ginnika 2001 – Pero
B3: Impianto e Indirizzo: | C3: Palestra Dante Alighieri – Via Giovanni XXIII - Pero - MI
B4: Svoltasi in data: | C4: Domenica 13 Marzo 2016
B5: Disciplina: | C5: Ginnastica per Tutti
A6: Prova di qualificazione Regionale Trofeo Sincrogym - Zona 3
A7: 1° Fascia categoria SILVER - senza attrezzi
A9: CL | B9: SOCIETA' | C9: Prov. | D9: TOTALE SENZA ATTR. | E9: PN | F9: COLLETTIVO SENZA ATTREZZI | J9: COPPIE SENZA ATTREZZI
F10: D | G10: E | H10: PN | I10: TOTALE | J10: ESERCIZIO 1^ COPPIA | K10: ESERCIZIO 2^ COPPIA | L10: PN | M10: TOTALE
A12: 1 | B12: A.S.D. GINNASTICA PAVESE A.S.D. | C12: MI | D12: =I12+M12-E12 -> 70.8 | E12: 0 | F12: 19 | G12: 16.5 | I12: =SUM(F12:G12)-H12 -> 35.5 | J12: 18.3 | K12: 17 | M12: =J12+K12-L12 -> 35.3
A13: =A12+1 -> 2 | B13: S.G. TICINESE A.S.D. | C13: MI | D13: =I13+M13-E13 -> 69.8 | E13: 0 | F13: 18.5 | G13: 16.2 | I13: =SUM(F13:G13)-H13 -> 34.7 | J13: 17.3 | K13: 17.8 | M13: =J13+K13-L13 -> 35.1
A15: CL | B15: SOCIETA' | C15: Prov. | D15: COLLETTIVO SENZA ATTREZZI
D16: D | E16: E | F16: PN | G16: TOTALE
A18: 1 | B18: =B12 -> A.S.D. GINNASTICA PAVESE A.S.D. | C18: MI | D18: =F12 -> 19 | E18: 16.5 | F18: 0 | G18: =SUM(D18:E18)-F18 -> 35.5
A19: 2 | B19: =B13 -> S.G. TICINESE A.S.D. | C19: MI | D19: 18.5 | E19: 16.2 | F19: 0 | G19: =SUM(D19:E19)-F19 -> 34.7
A24: CL | B24: SOCIETA' | C24: Prov. | D24: COPPIE SENZA ATTREZZI
D25: ESERCIZIO 1^COPPIA | E25: ESERCIZIO 2^ COPPIA | F25: PN | G25: TOTALE
A27: 1 | B27: =B12 -> A.S.D. GINNASTICA PAVESE A.S.D. | C27: MI | D27: =J12 -> 18.3 | E27: 17 | F27: 0 | G27: =D27+E27-F27 -> 35.3
A28: =A27+1 -> 2 | B28: =B13 -> S.G. TICINESE A.S.D. | C28: MI | D28: 17.3 | E28: 17.8 | F28: 0 | G28: =D28+E28-F28 -> 35.1

Sheet 2 fascia con attrezzi
A1: Comitato Regionale Lombardo - Via Ovada, 40 20142 MILANO
B2: Organizzata da: | C2: Ginnika 2001 – Pero
B3: Impianto e Indirizzo: | C3: Palestra Dante Alighieri – Via Giovanni XXIII - Pero - MI
B4: Svoltasi in data: | C4: Domenica 13 Marzo 2016
B5: Disciplina: | C5: Ginnastica per Tutti
A6: Prova di qualificazione Regionale Trofeo Sincrogym - Zona 3
A7: 2° Fascia categoria SILVER - con attrezzi
A9: CL | B9: SOCIETA' | C9: Prov. | D9: TOTALE CON ATTR. | E9: PN | F9: COLLETTIVO CON ATTREZZI | J9: COPPIE CON ATTREZZI
F10: D | G10: E | H10: PN | I10: TOTALE | J10: ESERCIZIO 1^ COPPIA | K10: ESERCIZIO 2^ COPPIA | L10: PN | M10: TOTALE
A12: 1 | B12: A.S.D. SOC. GINNASTICA SKILL | C12: MI | D12: =I12+M12-E12 -> 74.1 | E12: 0 | F12: 19 | G12: 18 | I12: =SUM(F12:G12)-H12 -> 37 | J12: 18.3 | K12: 18.8 | M12: =J12+K12 -> 37.1
A13: =A12+1 -> 2 | B13: A.S.D. RITMICA MELZO | C13: MI | D13: 72.9 | E13: 0 | F13: 19 | G13: 18.1 | I13: 37.1 | J13: 17.6 | K13: 18.2 | M13: =J13+K13-L13 -> 35.8
A14: 3 | B14: SOC GINNASTICA PAVESE A.S.D. | C14: PV | D14: 71.8 | E14: 0 | F14: 19 | G14: 18.2 | I14: 37.2 | J14: 17.1 | K14: 17.5 | M14: =J14+K14 -> 34.6
A15: 4 | B15: A.S.D. ARTERITMICA PARABIAGO | C15: MI | D15: 71.4 | E15: 0 | F15: 19 | G15: 17.1 | I15: 36.1 | J15: 17.7 | K15: 17.6 | M15: =J15+K15-L15 -> 35.3
A16: 5 | B16: A,S,D,GINNIKA 2001 | C16: MI | D16: 70.3 | E16: 0 | F16: 19 | G16: 17.2 | I16: 36.2 | J16: 17.2 | K16: 16.9 | M16: =J16+K16 -> 34.1
A17: 6 | B17: GINNASTICA RITMICA NERVIANESE A.S.D. | C17: MI | D17: 69.8 | E17: 0 | F17: 18.5 | G17: 16.1 | I17: 34.6 | J17: 17.4 | K17: 17.8 | M17: =J17+K17 -> 35.2
A18: 7 | B18: A.S.D..GINNASTICA RHO CORNAREDO 1979 | C18: MI | D18: 69.4 | E18: 0 | F18: 19 | G18: 17.1 | I18: 36.1 | J18: 17 | K18: 16.3 | M18: =J18+K18-L18 -> 33.3
A19: 8 | B19: A.S.D. GYMNASIUM 97 | C19: MI | D19: 69.2 | E19: 0 | F19: 19 | G19: 16.5 | I19: 35.5 | J19: 16.8 | K19: 16.9 | M19: =J19+K19-L19 -> 33.7
A22: CL | B22: SOCIETA' | C22: Prov. | D22: COLLETTIVO CON ATTREZZI
D23: D | E23: E | F23: PN | G23: TOTALE
A25: 1 | B25: SOC GINNASTICA PAVESE A.S.D. | C25: MI | D25: 19 | E25: 18.2 | F25: 0 | G25: 37.2
A26: =A25+1 -> 2 | B26: A.S.D. RITMICA MELZO | C26: MI | D26: 19 | E26: 18.1 | F26: 0 | G26: 37.1
A27: 3 | B27: A.S.D. SOC. GINNASTICA SKILL | C27: MI | D27: 19 | E27: 18 | F27: 0 | G27: 37
A28: 4 | B28: A,S,D,GINNIKA 2001 | C28: MI | D28: 19 | E28: 17.2 | F28: 0 | G28: 36.2
A29: 5 | B29: A.S.D. ARTERITMICA PARABIAGO | C29: PV | D29: 19 | E29: 17.1 | F29: 0 | G29: 36.1
A30: 5 | B30: A.S.D..GINNASTICA RHO CORNAREDO 1979 | C30: MI | D30: 19 | E30: 17.1 | F30: 0 | G30: 36.1
A31: 7 | B31: A.S.D. GYMNASIUM 97 | C31: MI | D31: 19 | E31: 16.5 | F31: 0 | G31: 35.5
A32: 8 | B32: GINNASTICA RITMICA NERVIANESE A.S.D. | C32: MI | D32: 18.5 | E32: 16.1 | F32: 0 | G32: 34.6
A35: CL | B35: SOCIETA' | C35: Prov. | D35: COPPIE CON ATTREZZI
D36: ESERCIZIO 1^COPPIA | E36: ESERCIZIO 2^ COPPIA | F36: PN | G36: TOTALE
A38: 1 | B38: A.S.D. SOC. GINNASTICA SKILL | C38: MI | D38: 18.3 | E38: 18.8 | F38: 0 | G38: 37.1
A39: =A38+1 -> 2 | B39: A.S.D. RITMICA MELZO | C39: MI | D39: 17.6 | E39: 18.2 | F39: 0 | G39: 35.8
A40: 3 | B40: A.S.D. ARTERITMICA PARABIAGO | C40: MI | D40: 17.7 | E40: 17.6 | F40: 0 | G40: 35.3
A41: 4 | B41: GINNASTICA RITMICA NERVIANESE A.S.D. | C41: PV | D41: 17.4 | E41: 17.8 | F41: 0 | G41: 35.2
A42: 5 | B42: SOC GINNASTICA PAVESE A.S.D. | C42: MI | D42: 17.1 | E42: 17.5 | F42: 0 | G42: 34.6
A43: 6 | B43: A,S,D,GINNIKA 2001 | C43: MI | D43: 17.2 | E43: 16.9 | F43: 0 | G43: 34.1
A44: 7 | B44: A.S.D. GYMNASIUM 97 | C44: MI | D44: 16.8 | E44: 16.9 | F44: 0 | G44: 33.7
A45: 8 | B45: A.S.D..GINNASTICA RHO CORNAREDO 1979 | C45: MI | D45: 17 | E45: 16.3 | F45: 0 | G45: 33.3

Sheet 2 fascia senza attrezzi
A1: Comitato Regionale Lombardo - Via Ovada, 40 20142 MILANO
B2: Organizzata da: | C2: Ginnika 2001 – Pero
B3: Impianto e Indirizzo: | C3: Palestra Dante Alighieri – Via Giovanni XXIII - Pero - MI
B4: Svoltasi in data: | C4: Domenica 13 Marzo 2016
B5: Disciplina: | C5: Ginnastica per Tutti
A6: Prova di qualificazione Regionale Trofeo Sincrogym - Zona 3
A7: 2° Fascia categoria SILVER - senza attrezzi
A9: CL | B9: SOCIETA' | C9: Prov. | D9: TOTALE SENZA ATTR. | E9: PN | F9: COLLETTIVO SENZA ATTREZZI | J9: COPPIE SENZA ATTREZZI
F10: D | G10: E | H10: PN | I10: TOTALE | J10: ESERCIZIO 1^ COPPIA | K10: ESERCIZIO 2^ COPPIA | L10: PN | M10: TOTALE
A12: =A11+1 -> 1 | B12: GINNASTICA RITMICA NERVIANESE A.S.D. | C12: MI | D12: =I12+M12-E12 -> 74.6 | E12: 0 | F12: 19 | G12: 18.6 | I12: =SUM(F12:G12)-H12 -> 37.6 | J12: 18.7 | K12: 18.3 | M12: =J12+K12-L12 -> 37
A13: =A12+1 -> 2 | B13: A.S.D. GYMNASIUM 97 | C13: MI | D13: =I13+M13-E13 -> 74.4 | E13: 0 | F13: 19 | G13: 18.3 | I13: =SUM(F13:G13)-H13 -> 37.3 | J13: 18.6 | K13: 18.5 | M13: =J13+K13-L13 -> 37.1
A14: =A13+1 -> 3 | B14: A.S.D. GINNASTICA MODERNA LEGNANO | C14: MI | D14: =I14+M14-E14 -> 74.2 | E14: 0 | F14: 19 | G14: 18.6 | I14: =SUM(F14:G14)-H14 -> 37.6 | J14: 18 | K14: 18.6 | M14: =J14+K14-L14 -> 36.6
A15: 4 | B15: G.E.A.S.SEZ. GINN. ART. | C15: MI | D15: =I15+M15-E15 -> 69.2 | E15: 0 | F15: 19 | G15: 15.9 | I15: =SUM(F15:G15)-H15 -> 34.9 | J15: 17.5 | K15: 16.8 | M15: =J15+K15-L15 -> 34.3
A17: CL | B17: SOCIETA' | C17: Prov. | D17: COLLETTIVO SENZA ATTREZZI
D18: D | E18: E | F18: PN | G18: TOTALE
A20: 1 | B20: =B12 -> GINNASTICA RITMICA NERVIANESE A.S.D. | C20: MI | D20: =F12 -> 19 | E20: =G12 -> 18.6 | F20: =H12 -> 0 | G20: =SUM(D20:E20)-F20 -> 37.6
A21: 1 | B21: =B14 -> A.S.D. GINNASTICA MODERNA LEGNANO | C21: MI | D21: =F14 -> 19 | E21: =G14 -> 18.6 | F21: =H14 -> 0 | G21: =SUM(D21:E21)-F21 -> 37.6
A22: 3 | B22: =B13 -> A.S.D. GYMNASIUM 97 | C22: MI | D22: =F13 -> 19 | E22: =G13 -> 18.3 | F22: =H13 -> 0 | G22: =SUM(D22:E22)-F22 -> 37.3
A23: 4 | B23: =B15 -> G.E.A.S.SEZ. GINN. ART. | C23: MI | D23: =F15 -> 19 | E23: =G15 -> 15.9 | F23: =H15 -> 0 | G23: =SUM(D23:E23)-F23 -> 34.9
A26: CL | B26: SOCIETA' | C26: Prov. | D26: COPPIE SENZA ATTREZZI
D27: ESERCIZIO 1^ COPPIA | E27: ESERCIZIO 2^ COPPIA | F27: PN | G27: TOTALE
A29: 1 | B29: =B13 -> A.S.D. GYMNASIUM 97 | C29: MI | D29: =J13 -> 18.6 | E29: =K13 -> 18.5 | F29: =L13 -> 0 | G29: =D29+E29-F29 -> 37.1
A30: 2 | B30: =B12 -> GINNASTICA RITMICA NERVIANESE A.S.D. | C30: MI | D30: =J12 -> 18.7 | E30: =K12 -> 18.3 | F30: =L12 -> 0 | G30: =D30+E30-F30 -> 37
A31: 3 | B31: =B14 -> A.S.D. GINNASTICA MODERNA LEGNANO | C31: MI | D31: =J14 -> 18 | E31: 18.6 | F31: 0 | G31: =D31+E31-F31 -> 36.6
A32: =A31+1 -> 4 | B32: =B15 -> G.E.A.S.SEZ. GINN. ART. | C32: MI | D32: 17.5 | E32: 16.8 | F32: 0 | G32: =D32+E32-F32 -> 34.3

Sheet 3-4 fascia con attrezzi
A1: Comitato Regionale Lombardo - Via Ovada, 40 20142 MILANO
B2: Organizzata da: | C2: Ginnika 2001 – Pero
B3: Impianto e Indirizzo: | C3: Palestra Dante Alighieri – Via Giovanni XXIII - Pero - MI
B4: Svoltasi in data: | C4: Domenica 13 Marzo 2016
B5: Disciplina: | C5: Ginnastica per Tutti
A6: Prova di qualificazione Regionale Trofeo Sincrogym - Zona 3
A7: 3°- 4° Fascia categoria SILVER - con attrezzi
A9: CL | B9: SOCIETA' | C9: Prov. | D9: TOTALE CON ATTR. | E9: PN | F9: COLLETTIVO CON ATTREZZI | J9: COPPIE CON ATTREZZI
F10: D | G10: E | H10: PN | I10: TOTALE | J10: ESERCIZIO 1^ COPPIA | K10: ESERCIZIO 2^ COPPIA | L10: PN | M10: TOTALE
A12: 1 | B12: A.S.D. GINNIKA 2001 | C12: MI | D12: =I12+M12-E12 -> 70.5 | E12: 0 | F12: 20.5 | G12: 16.1 | I12: =SUM(F12:G12)-H12 -> 36.6 | J12: 16.1 | K12: 17.8 | M12: =J12+K12-L12 -> 33.9
A13: =A12+1 -> 2 | B13: A.S.D. GINNASTICA MODERNA LEGNANO | C13: MI | D13: =I13+M13-E13 -> 69.8 | E13: 0 | F13: 20.5 | G13: 16.1 | I13: =SUM(F13:G13)-H13 -> 36.6 | J13: 17 | K13: 16.2 | M13: =J13+K13-L13 -> 33.2
A14: =A13+1 -> 3 | B14: GINNASTICA RITMICA NERVIANESE A.S.D. | C14: MI | D14: =I14+M14-E14 -> 68.9 | E14: 0 | F14: 20.5 | G14: 13.5 | I14: =SUM(F14:G14)-H14 -> 34 | J14: 17.4 | K14: 17.5 | M14: =J14+K14-L14 -> 34.9
A15: =A14+1 -> 4 | B15: A.S.G.R.S. SANNAZARESE | C15: PV | D15: =I15+M15-E15 -> 67.2 | E15: 0 | F15: 20.5 | G15: 15.1 | I15: =SUM(F15:G15)-H15 -> 35.6 | J15: 16.2 | K15: 15.4 | M15: =J15+K15-L15 -> 31.6
A16: =A15+1 -> 5 | B16: POL. DIL. ACQUAMARINA SPORT&LIFE | C16: MI | D16: =I16+M16-E16 -> 66.2 | E16: 0 | F16: 20.5 | G16: 15.3 | I16: =SUM(F16:G16)-H16 -> 35.8 | J16: 15.9 | K16: 14.5 | M16: =J16+K16-L16 -> 30.4
A18: CL | B18: SOCIETA' | C18: Prov. | D18: COLLETTIVO CON ATTREZZI
D19: D | E19: E | F19: PN | G19: TOTALE
A21: 1 | B21: A.S.D. GINNIKA 2001 | C21: MI | D21: 20.5 | E21: 16.1 | F21: 0 | G21: 36.6
A22: 1 | B22: A.S.D. GINNASTICA MODERNA LEGNANO | C22: PV | D22: 20.5 | E22: 16.1 | F22: 0 | G22: 36.6
A23: 3 | B23: POL. DIL. ACQUAMARINA SPORT&LIFE | C23: MI | D23: 20.5 | E23: 15.3 | F23: 0 | G23: 35.8
A24: =A23+1 -> 4 | B24: A.S.G.R.S. SANNAZARESE | C24: MI | D24: 20.5 | E24: 15.1 | F24: 0 | G24: 35.6
A25: =A24+1 -> 5 | B25: GINNASTICA RITMICA NERVIANESE A.S.D. | C25: MI | D25: 20.5 | E25: 13.5 | F25: 0 | G25: 34
A28: CL | B28: SOCIETA' | C28: Prov. | D28: COPPIE CON ATTREZZI
D29: ESERCIZIO 1^ COPPIA | E29: ESERCIZIO 2^ COPPIA | F29: PN | G29: TOTALE
A31: 1 | B31: GINNASTICA RITMICA NERVIANESE A.S.D. | C31: MI | D31: 17.4 | E31: 17.5 | F31: 0 | G31: 34.9
A32: =A31+1 -> 2 | B32: A.S.D. GINNIKA 2001 | C32: PV | D32: 16.1 | E32: 17.8 | F32: 0 | G32: 33.9
A33: =A32+1 -> 3 | B33: A.S.D. GINNASTICA MODERNA LEGNANO | C33: MI | D33: 17 | E33: 16.2 | F33: 0 | G33: 33.2
A34: =A33+1 -> 4 | B34: A.S.G.R.S. SANNAZARESE | C34: MI | D34: 16.2 | E34: 15.4 | F34: 0 | G34: 31.6
A35: =A34+1 -> 5 | B35: POL. DIL. ACQUAMARINA SPORT&LIFE | C35: MI | D35: 15.9 | E35: 14.5 | F35: 0 | G35: 30.4

Sheet 3-4 fascia senza attrezzi
A1: Comitato Regionale Lombardo - Via Ovada, 40 20142 MILANO
B2: Organizzata da: | C2: Ginnika 2001 – Pero
B3: Impianto e Indirizzo: | C3: Palestra Dante Alighieri – Via Giovanni XXIII - Pero - MI
B4: Svoltasi in data: | C4: Domenica 13 Marzo 2016
B5: Disciplina: | C5: Ginnastica per Tutti
A6: Prova di qualificazione Regionale Trofeo Sincrogym - Zona 3
A7: 3°- 4° Fascia categoria SILVER - senza attrezzi
A9: CL | B9: SOCIETA' | C9: Prov. | D9: TOTALE SENZA ATTR. | E9: PN | F9: COLLETTIVO SENZA ATTREZZI | J9: COPPIE SENZA ATTREZZI
F10: D | G10: E | H10: PN | I10: TOTALE | J10: ESERCIZIO 1^ COPPIA | K10: ESERCIZIO 2^ COPPIA | L10: PN | M10: TOTALE
A12: 1 | B12: GINNASTICA RITMICA NERVIANESE A.S.D. | C12: MI | D12: =I12+M12-E12 -> 74.1 | E12: 0 | F12: 20.5 | G12: 17.3 | I12: =SUM(F12:G12)-H12 -> 37.8 | J12: 17.3 | K12: 19 | M12: =J12+K12-L12 -> 36.3
A13: =A12+1 -> 2 | B13: A.S.D. GINNASTICA MODERNA LEGNANO | C13: MI | D13: =I13+M13-E13 -> 72.8 | E13: 0 | F13: 20.5 | G13: 16.7 | I13: =SUM(F13:G13)-H13 -> 37.2 | J13: 18.1 | K13: 17.5 | M13: =J13+K13-L13 -> 35.6
A14: =A13+1 -> 3 | B14: A.S.D. RITMICA MELZO | C14: MI | D14: =I14+M14-E14 -> 72.6 | E14: 0 | F14: 20.5 | G14: 16.9 | I14: =SUM(F14:G14)-H14 -> 37.4 | J14: 17.8 | K14: 17.4 | M14: =J14+K14-L14 -> 35.2
A16: CL | B16: SOCIETA' | C16: Prov. | D16: COLLETTIVO SENZA ATTREZZI
D17: D | E17: E | F17: PN | G17: TOTALE
A19: 1 | B19: =B12 -> GINNASTICA RITMICA NERVIANESE A.S.D. | C19: MI | D19: =F12 -> 20.5 | E19: =G12 -> 17.3 | F19: =H12 -> 0 | G19: =SUM(D19:E19)-F19 -> 37.8
A20: 2 | B20: =B14 -> A.S.D. RITMICA MELZO | C20: MI | D20: =F14 -> 20.5 | E20: =G14 -> 16.9 | F20: =H14 -> 0 | G20: =SUM(D20:E20)-F20 -> 37.4
A21: 3 | B21: =B13 -> A.S.D. GINNASTICA MODERNA LEGNANO | C21: MI | D21: =F13 -> 20.5 | E21: =G13 -> 16.7 | F21: =H13 -> 0 | G21: =SUM(D21:E21)-F21 -> 37.2
A25: CL | B25: SOCIETA' | C25: Prov. | D25: COPPIE SENZA ATTREZZI
D26: ESERCIZIO 1^COPPIA | E26: ESERCIZIO 2^ COPPIA | F26: PN | G26: TOTALE
A28: =A27+1 -> 1 | B28: =B12 -> GINNASTICA RITMICA NERVIANESE A.S.D. | C28: MI | D28: =J12 -> 17.3 | E28: 19 | F28: 0 | G28: =D28+E28-F28 -> 36.3
A29: 2 | B29: =B13 -> A.S.D. GINNASTICA MODERNA LEGNANO | C29: MI | D29: 18.1 | E29: 17.5 | F29: 0 | G29: =D29+E29-F29 -> 35.6
A30: 3 | B30: =B14 -> A.S.D. RITMICA MELZO | C30: MI | D30: 17.8 | E30: 17.4 | F30: 0 | G30: =D30+E30-F30 -> 35.2
